Workbook

Sheet NormalCurve
A1: Normal Curve
A2: Unit Normal
A3: 0 | B3: mean
A4: 1 | B4: standard deviation
A5: 0.1 | B5: graph increment
B6: # SDs | C6: Probability | D6: Probability | E6: Cum Prob
A7: 1 | B7: -3.5 | C7: =EXP(-((B7-$A$3)^2)/(2*$A$4^2))/($A$4*(2*PI())^0.5) -> 0.000872682695 | D7: =_xlfn.NORM.DIST(B7,$A$3,$A$4,0) -> 0.000872682695 | E7: =_xlfn.NORM.DIST(B7,$A$3,$A$4,1) -> 0.000232629079
A8: =1+A7 -> 2 | B8: =B7+$A$5 -> -3.4 | C8: =EXP(-((B8-$A$3)^2)/(2*$A$4^2))/($A$4*(2*PI())^0.5) -> 0.001232219168 | D8: =_xlfn.NORM.DIST(B8,$A$3,$A$4,0) -> 0.001232219168 | E8: =_xlfn.NORM.DIST(B8,$A$3,$A$4,1) -> 0.0003369292657
A9: 3 | B9: =B8+$A$5 -> -3.3 | C9: 0.001722568939 | D9: 0.001722568939 | E9: 0.0004834241424
A10: 4 | B10: -3.2 | C10: 0.002384088201 | D10: 0.002384088201 | E10: 0.0006871379379
A11: 5 | B11: -3.1 | C11: 0.003266819056 | D11: 0.003266819056 | E11: 0.0009676032132
A12: 6 | B12: -3 | C12: 0.004431848412 | D12: 0.004431848412 | E12: 0.001349898032
A13: 7 | B13: -2.9 | C13: 0.00595253242 | D13: 0.00595253242 | E13: 0.0018658133
A14: 8 | B14: -2.8 | C14: 0.007915451583 | D14: 0.007915451583 | E14: 0.00255513033
A15: 9 | B15: -2.7 | C15: 0.01042093481 | D15: 0.01042093481 | E15: 0.003466973803
A16: 10 | B16: -2.6 | C16: 0.01358296923 | D16: 0.01358296923 | E16: 0.004661188024
A17: 11 | B17: -2.5 | C17: 0.01752830049 | D17: 0.01752830049 | E17: 0.006209665326
A18: 12 | B18: -2.4 | C18: 0.02239453029 | D18: 0.02239453029 | E18: 0.008197535925
A19: 13 | B19: -2.3 | C19: 0.02832703774 | D19: 0.02832703774 | E19: 0.01072411002
A20: 14 | B20: -2.2 | C20: 0.03547459285 | D20: 0.03547459285 | E20: 0.01390344751
A21: 15 | B21: -2.1 | C21: 0.04398359598 | D21: 0.04398359598 | E21: 0.01786442056
A22: 16 | B22: -2 | C22: 0.05399096651 | D22: 0.05399096651 | E22: 0.02275013195
A23: 17 | B23: -1.9 | C23: 0.06561581477 | D23: 0.06561581477 | E23: 0.02871655982
A24: 18 | B24: -1.8 | C24: 0.0789501583 | D24: 0.0789501583 | E24: 0.03593031911
A25: 19 | B25: -1.7 | C25: 0.09404907738 | D25: 0.09404907738 | E25: 0.04456546276
A26: 20 | B26: -1.6 | C26: 0.1109208347 | D26: 0.1109208347 | E26: 0.0547992917
A27: 21 | B27: -1.5 | C27: 0.1295175957 | D27: 0.1295175957 | E27: 0.06680720127
A28: 22 | B28: -1.4 | C28: 0.1497274656 | D28: 0.1497274656 | E28: 0.08075665923
A29: 23 | B29: -1.3 | C29: 0.171368592 | D29: 0.171368592 | E29: 0.09680048459
A30: 24 | B30: -1.2 | C30: 0.194186055 | D30: 0.194186055 | E30: 0.1150696702
A31: 25 | B31: -1.1 | C31: 0.217852177 | D31: 0.217852177 | E31: 0.1356660609
A32: 26 | B32: -1 | C32: 0.2419707245 | D32: 0.2419707245 | E32: 0.1586552539
A33: 27 | B33: -0.9 | C33: 0.2660852499 | D33: 0.2660852499 | E33: 0.1840601253
A34: 28 | B34: -0.8 | C34: 0.2896915528 | D34: 0.2896915528 | E34: 0.2118553986
A35: 29 | B35: -0.7 | C35: 0.3122539334 | D35: 0.3122539334 | E35: 0.2419636522
A36: 30 | B36: -0.6 | C36: 0.3332246029 | D36: 0.3332246029 | E36: 0.2742531178
A37: 31 | B37: -0.5 | C37: 0.3520653268 | D37: 0.3520653268 | E37: 0.3085375387
A38: 32 | B38: -0.4 | C38: 0.3682701403 | D38: 0.3682701403 | E38: 0.3445782584
A39: 33 | B39: -0.3 | C39: 0.3813878155 | D39: 0.3813878155 | E39: 0.3820885778
A40: 34 | B40: -0.2 | C40: 0.391042694 | D40: 0.391042694 | E40: 0.4207402906
A41: 35 | B41: -0.1 | C41: 0.3969525475 | D41: 0.3969525475 | E41: 0.4601721627
A42: 36 | B42: 1.970645869e-15 | C42: 0.3989422804 | D42: 0.3989422804 | E42: 0.5
A43: 37 | B43: 0.1 | C43: 0.3969525475 | D43: 0.3969525475 | E43: 0.5398278373
A44: 38 | B44: 0.2 | C44: 0.391042694 | D44: 0.391042694 | E44: 0.5792597094
A45: 39 | B45: 0.3 | C45: 0.3813878155 | D45: 0.3813878155 | E45: 0.6179114222
A46: 40 | B46: 0.4 | C46: 0.3682701403 | D46: 0.3682701403 | E46: 0.6554217416
A47: 41 | B47: 0.5 | C47: 0.3520653268 | D47: 0.3520653268 | E47: 0.6914624613
A48: 42 | B48: 0.6 | C48: 0.3332246029 | D48: 0.3332246029 | E48: 0.7257468822
A49: 43 | B49: 0.7 | C49: 0.3122539334 | D49: 0.3122539334 | E49: 0.7580363478
A50: 44 | B50: 0.8 | C50: 0.2896915528 | D50: 0.2896915528 | E50: 0.7881446014
A51: 45 | B51: 0.9 | C51: 0.2660852499 | D51: 0.2660852499 | E51: 0.8159398747
A52: 46 | B52: 1 | C52: 0.2419707245 | D52: 0.2419707245 | E52: 0.8413447461
A53: 47 | B53: 1.1 | C53: 0.217852177 | D53: 0.217852177 | E53: 0.8643339391
A54: 48 | B54: 1.2 | C54: 0.194186055 | D54: 0.194186055 | E54: 0.8849303298
A55: 49 | B55: 1.3 | C55: 0.171368592 | D55: 0.171368592 | E55: 0.9031995154
A56: 50 | B56: 1.4 | C56: 0.1497274656 | D56: 0.1497274656 | E56: 0.9192433408
A57: 51 | B57: 1.5 | C57: 0.1295175957 | D57: 0.1295175957 | E57: 0.9331927987
A58: 52 | B58: 1.6 | C58: 0.1109208347 | D58: 0.1109208347 | E58: 0.9452007083
A59: 53 | B59: 1.7 | C59: 0.09404907738 | D59: 0.09404907738 | E59: 0.9554345372
A60: 54 | B60: 1.8 | C60: 0.0789501583 | D60: 0.0789501583 | E60: 0.9640696809
A61: 55 | B61: 1.9 | C61: 0.06561581477 | D61: 0.06561581477 | E61: 0.9712834402
A62: 56 | B62: 2 | C62: 0.05399096651 | D62: 0.05399096651 | E62: 0.9772498681
A63: 57 | B63: 2.1 | C63: 0.04398359598 | D63: 0.04398359598 | E63: 0.9821355794
A64: 58 | B64: 2.2 | C64: 0.03547459285 | D64: 0.03547459285 | E64: 0.9860965525
A65: 59 | B65: 2.3 | C65: 0.02832703774 | D65: 0.02832703774 | E65: 0.98927589
A66: 60 | B66: 2.4 | C66: 0.02239453029 | D66: 0.02239453029 | E66: 0.9918024641
A67: 61 | B67: 2.5 | C67: 0.01752830049 | D67: 0.01752830049 | E67: 0.9937903347
A68: 62 | B68: 2.6 | C68: 0.01358296923 | D68: 0.01358296923 | E68: 0.995338812
A69: 63 | B69: 2.7 | C69: 0.01042093481 | D69: 0.01042093481 | E69: 0.9965330262
A70: 64 | B70: 2.8 | C70: 0.007915451583 | D70: 0.007915451583 | E70: 0.9974448697
A71: 65 | B71: 2.9 | C71: 0.00595253242 | D71: 0.00595253242 | E71: 0.9981341867
A72: =1+A71 -> 66 | B72: 3 | C72: =EXP(-((B72-$A$3)^2)/(2*$A$4^2))/($A$4*(2*PI())^0.5) -> 0.004431848412 | D72: =_xlfn.NORM.DIST(B72,$A$3,$A$4,0) -> 0.004431848412 | E72: =_xlfn.NORM.DIST(B72,$A$3,$A$4,1) -> 0.998650102
A73: 67 | B73: =B72+$A$5 -> 3.1 | C73: 0.003266819056 | D73: 0.003266819056 | E73: 0.9990323968
A74: 68 | B74: 3.2 | C74: 0.002384088201 | D74: 0.002384088201 | E74: 0.9993128621
A75: 69 | B75: 3.3 | C75: 0.001722568939 | D75: 0.001722568939 | E75: 0.9995165759
A76: 70 | B76: 3.4 | C76: 0.001232219168 | D76: 0.001232219168 | E76: 0.9996630707
A77: 71 | B77: 3.5 | C77: 0.000872682695 | D77: 0.000872682695 | E77: 0.9997673709

Sheet Normdist
A1: Normalizing a Discrete Distribution
A2: In practice a scenario forecast is often used to get a better estimate of the distribution of a quantity that
A3: is approximately normally distributed. For example, we might estimate the mean and standard
A4: deviation of next year's number of units sold (Quantity) and Return on Equity (ROE) with a scenario
A5: forecast.
A6: Scenario Forecast | C6: Probability | D6: Quantity | E6: ROE
B7: Good economy | C7: 0.35 | D7: 1250 | E7: 0.2699715019
B8: Average economy | C8: 0.4 | D8: 1000 | E8: 0.1263917512
B9: Bad economy | C9: 0.25 | D9: 750 | E9: -0.01718799956
B10: Mean | D10: =+MMULT(TRANSPOSE($C$7:$C$9),D7:D9) -> 1025 | E10: =+MMULT(TRANSPOSE($C$7:$C$9),E7:E9) -> 0.1407497263 | F10: =getformula(E10) -> <-- {=+MMULT(TRANSPOSE($C$7:$C$9),E7:E9)} | I10: Using MMULT to calculate Variance:
B11: Variance | D11: =(D7-D$10)^2*$C7+(D8-D$10)^2*$C8+(D9-D$10)^2*$C9 -> 36875 | E11: =(E7-E$10)^2*$C7+(E8-E$10)^2*$C8+(E9-E$10)^2*$C9 -> 0.01216293545 | F11: =getformula(E11) -> <-- =(E7-E$10)^2*$C7+(E8-E$10)^2*$C8+(E9-E$10)^2*$C9 | I11: =MMULT(TRANSPOSE(C7:C9),(D7:D9-$D$10)^2) -> 36875 | J11: =getformula(I11) -> <-- =MMULT(TRANSPOSE(C7:C9),(D7:D9-$D$10)^2)
B12: Standard Deviation | D12: =SQRT(D11) -> 192.0286437 | E12: =SQRT(E11) -> 0.1102856992 | F12: <-- =SQRT(E11)
A13: Breakeven Points and Probability of Breakeven Using Normalized Distributions
B14: Now assume that the discrete distributions of Quantity & Sales in the scenario
B15: forecast are converted to normal distributions using the means and standard deviations
B16: calculated above. Our goal below is to calculate the probability of breaking even for
B17: both EBIT and ROE.
D19: Breakeven Quantity (Units) | E19: 750 | F19: <-- EBIT = 0
D20: Breakeven ROE (Units) | E20: 779 | F20: <-- ROE = 0
D21: Expected ROE | E21: =E10 -> 0.1407497263 | F21: Expected Quantity | G21: =D10 -> 1025
D22: Standard Deviation of ROE | E22: =E12 -> 0.1102856992 | F22: Standard Deviation of Quantity | G22: =D12 -> 192.0286437
D23: P(ROE>0) | E23: =1-NORMDIST(0,E21,E22,1) -> 0.8990625797 | F23: <-- Uses Expected ROE & Standard Deviation of ROE
D24: P(EBIT>0) | E24: =1-NORMDIST(E19,G21,G22,1) -> 0.9239392531 | F24: =getformula(E24) -> <-- =1-NORMDIST(E19,G21,G22,1) | G24: <-- Uses Expected Quantity & Standard Deviation of Quantity
D25: P(ROE>0) | E25: =1-NORMDIST(E20,G21,G22,1) -> 0.8999135079 | F25: =getformula(E25) -> <-- =1-NORMDIST(E20,G21,G22,1) | G25: <-- Uses Expected Quantity & Standard Deviation of Quantity
A29: =G21 -> 1025 | B29: mean
A30: =G22 -> 192.0286437 | B30: standard deviation
A31: 0.25 | B31: graph increment
B32: # SDs | C32: X | D32: Probability | E32: Cum Prob
A33: 1 | B33: -3.5 | C33: =B33*$A$30+$A$29 -> 352.8997471 | D33: =_xlfn.NORM.DIST(C33,$A$29,$A$30,0) -> 4.544544388e-06 | E33: =_xlfn.NORM.DIST(C33,$A$29,$A$30,1) -> 0.000232629079
A34: =1+A33 -> 2 | B34: =B33+$A$31 -> -3.25 | C34: =B34*$A$30+$A$29 -> 400.906908 | D34: =_xlfn.NORM.DIST(C34,$A$29,$A$30,0) -> 1.056638228e-05 | E34: =_xlfn.NORM.DIST(C34,$A$29,$A$30,1) -> 0.0005770250424
A35: 3 | B35: =B34+$A$31 -> -3 | C35: 448.9140689 | D35: 2.307910074e-05 | E35: 0.001349898032
A36: 4 | B36: -2.75 | C36: 496.9212298 | D36: 4.735523996e-05 | E36: 0.002979763235
A37: 5 | B37: -2.5 | C37: 544.9283908 | D37: 9.12796141e-05 | E37: 0.006209665326
A38: 6 | B38: -2.25 | C38: 592.9355517 | D38: 0.0001652860283 | E38: 0.01222447266
A39: 7 | B39: =B38+$A$31 -> -2 | C39: 640.9427126 | D39: 0.0002811610053 | E39: 0.02275013195
A40: 8 | B40: -1.75 | C40: 688.9498735 | D40: 0.0004492940072 | E40: 0.04005915686
A41: 9 | B41: -1.5 | C41: 736.9570345 | D41: 0.0006744701893 | E41: 0.06680720127
A42: 10 | B42: -1.25 | C42: 784.9641954 | D42: 0.0009511554207 | E42: 0.1056497737
A43: 11 | B43: -1 | C43: 832.9713563 | D43: 0.001260076205 | E43: 0.1586552539
A44: 12 | B44: -0.75 | C44: 880.9785172 | D44: 0.001568190174 | E44: 0.2266273524
A45: 13 | B45: -0.5 | C45: 928.9856782 | D45: 0.001833400059 | E45: 0.3085375387
A46: 14 | B46: -0.25 | C46: 976.9928391 | D46: 0.002013596042 | E46: 0.4012936743
A47: 15 | B47: 0 | C47: 1025 | D47: 0.002077514441 | E47: 0.5
A48: 16 | B48: 0.25 | C48: 1073.007161 | D48: 0.002013596042 | E48: 0.5987063257
A49: 17 | B49: 0.5 | C49: 1121.014322 | D49: 0.001833400059 | E49: 0.6914624613
A50: 18 | B50: 0.75 | C50: 1169.021483 | D50: 0.001568190174 | E50: 0.7733726476
A51: 19 | B51: 1 | C51: 1217.028644 | D51: 0.001260076205 | E51: 0.8413447461
A52: 20 | B52: 1.25 | C52: 1265.035805 | D52: 0.0009511554207 | E52: 0.8943502263
A53: 21 | B53: 1.5 | C53: 1313.042966 | D53: 0.0006744701893 | E53: 0.9331927987
A54: 22 | B54: 1.75 | C54: 1361.050126 | D54: 0.0004492940072 | E54: 0.9599408431
A55: 23 | B55: 2 | C55: 1409.057287 | D55: 0.0002811610053 | E55: 0.9772498681
A56: 24 | B56: 2.25 | C56: 1457.064448 | D56: 0.0001652860283 | E56: 0.9877755273
A57: 25 | B57: 2.5 | C57: 1505.071609 | D57: 9.12796141e-05 | E57: 0.9937903347
A58: 26 | B58: 2.75 | C58: 1553.07877 | D58: 4.735523996e-05 | E58: 0.9970202368
A59: 27 | B59: 3 | C59: 1601.085931 | D59: 2.307910074e-05 | E59: 0.998650102
A60: 28 | B60: 3.25 | C60: 1649.093092 | D60: 1.056638228e-05 | E60: 0.999422975
A61: 29 | B61: 3.5 | C61: 1697.100253 | D61: 4.544544388e-06 | E61: 0.9997673709
A64: Data for Vertical chart lines marking standard deviations from mean.
A65: =MAX(D33:D61) -> 0.002077514441 | B65: -3 | C65: =B65*$A$30+$A$29 -> 448.9140689 | D65: =$A$65 -> 0.002077514441 | E65: 1
B66: -3 | C66: =B66*$A$30+$A$29 -> 448.9140689 | D66: 0 | E66: 0
B68: =B65+1 -> -2 | C68: =B68*$A$30+$A$29 -> 640.9427126 | D68: =$A$65 -> 0.002077514441 | E68: 1
B69: =B66+1 -> -2 | C69: =B69*$A$30+$A$29 -> 640.9427126 | D69: 0 | E69: 0
B71: =B68+1 -> -1 | C71: =B71*$A$30+$A$29 -> 832.9713563 | D71: =$A$65 -> 0.002077514441 | E71: 1
B72: =B69+1 -> -1 | C72: =B72*$A$30+$A$29 -> 832.9713563 | D72: 0 | E72: 0
B74: =B71+1 -> 0 | C74: =B74*$A$30+$A$29 -> 1025 | D74: =$A$65 -> 0.002077514441 | E74: 1
B75: =B72+1 -> 0 | C75: =B75*$A$30+$A$29 -> 1025 | D75: 0 | E75: 0
B77: =B74+1 -> 1 | C77: =B77*$A$30+$A$29 -> 1217.028644 | D77: =$A$65 -> 0.002077514441 | E77: 1
B78: =B75+1 -> 1 | C78: =B78*$A$30+$A$29 -> 1217.028644 | D78: 0 | E78: 0
B80: =B77+1 -> 2 | C80: =B80*$A$30+$A$29 -> 1409.057287 | D80: =$A$65 -> 0.002077514441 | E80: 1
B81: =B78+1 -> 2 | C81: =B81*$A$30+$A$29 -> 1409.057287 | D81: 0 | E81: 0
B83: =B80+1 -> 3 | C83: =B83*$A$30+$A$29 -> 1601.085931 | D83: =$A$65 -> 0.002077514441 | E83: 1
B84: =B81+1 -> 3 | C84: =B84*$A$30+$A$29 -> 1601.085931 | D84: 0 | E84: 0

Sheet Norminv
A1: Simulating Normally Distributed Random Variables
A4: 20 | B4: mean
A5: 10 | B5: standard deviation
A6: 0.25 | B6: graph increment
B7: # SDs | C7: X | D7: Probability | E7: Cum Prob
A8: 1 | B8: -3.5 | C8: =B8*$A$5+$A$4 -> -15 | D8: =_xlfn.NORM.DIST(C8,$A$4,$A$5,0) -> 8.72682695e-05 | E8: =_xlfn.NORM.DIST(C8,$A$4,$A$5,1) -> 0.000232629079
A9: =1+A8 -> 2 | B9: =B8+$A$6 -> -3.25 | C9: =B9*$A$5+$A$4 -> -12.5 | D9: =_xlfn.NORM.DIST(C9,$A$4,$A$5,0) -> 0.0002029048057 | E9: =_xlfn.NORM.DIST(C9,$A$4,$A$5,1) -> 0.0005770250424
A10: 3 | B10: =B9+$A$6 -> -3 | C10: -10 | D10: 0.0004431848412 | E10: 0.001349898032
A11: 4 | B11: -2.75 | C11: -7.5 | D11: 0.0009093562502 | E11: 0.002979763235
A12: 5 | B12: -2.5 | C12: -5 | D12: 0.001752830049 | E12: 0.006209665326
A13: 6 | B13: -2.25 | C13: -2.5 | D13: 0.003173965184 | E13: 0.01222447266
A14: 7 | B14: -2 | C14: 0 | D14: 0.005399096651 | E14: 0.02275013195
A15: 8 | B15: -1.75 | C15: 2.5 | D15: 0.008627731883 | E15: 0.04005915686
A16: 9 | B16: -1.5 | C16: 5 | D16: 0.01295175957 | E16: 0.06680720127
A17: 10 | B17: -1.25 | C17: 7.5 | D17: 0.01826490854 | E17: 0.1056497737
A18: 11 | B18: -1 | C18: 10 | D18: 0.02419707245 | E18: 0.1586552539
A19: 12 | B19: -0.75 | C19: 12.5 | D19: 0.03011374322 | E19: 0.2266273524
A20: 13 | B20: -0.5 | C20: 15 | D20: 0.03520653268 | E20: 0.3085375387
A21: 14 | B21: -0.25 | C21: 17.5 | D21: 0.03866681168 | E21: 0.4012936743
A22: 15 | B22: 0 | C22: 20 | D22: 0.03989422804 | E22: 0.5
A23: 16 | B23: 0.25 | C23: 22.5 | D23: 0.03866681168 | E23: 0.5987063257
A24: 17 | B24: 0.5 | C24: 25 | D24: 0.03520653268 | E24: 0.6914624613
A25: 18 | B25: 0.75 | C25: 27.5 | D25: 0.03011374322 | E25: 0.7733726476
A26: 19 | B26: 1 | C26: 30 | D26: 0.02419707245 | E26: 0.8413447461
A27: 20 | B27: 1.25 | C27: 32.5 | D27: 0.01826490854 | E27: 0.8943502263
A28: 21 | B28: 1.5 | C28: 35 | D28: 0.01295175957 | E28: 0.9331927987
A29: 22 | B29: 1.75 | C29: 37.5 | D29: 0.008627731883 | E29: 0.9599408431
A30: 23 | B30: 2 | C30: 40 | D30: 0.005399096651 | E30: 0.9772498681
A31: 24 | B31: 2.25 | C31: 42.5 | D31: 0.003173965184 | E31: 0.9877755273
A32: 25 | B32: 2.5 | C32: 45 | D32: 0.001752830049 | E32: 0.9937903347
A33: 26 | B33: 2.75 | C33: 47.5 | D33: 0.0009093562502 | E33: 0.9970202368
A34: 27 | B34: 3 | C34: 50 | D34: 0.0004431848412 | E34: 0.998650102
A35: 28 | B35: 3.25 | C35: 52.5 | D35: 0.0002029048057 | E35: 0.999422975
A36: 29 | B36: 3.5 | C36: 55 | D36: 8.72682695e-05 | E36: 0.9997673709
A39: Data for Vertical chart lines marking standard deviations from mean. | G39: Simulated value with mean and standard deviation from above:
A40: =MAX(D8:D36) -> 0.03989422804 | B40: -3 | C40: =B40*$A$5+$A$4 -> -10 | D40: =$A$40 -> 0.03989422804 | E40: 1 | G40: =_xlfn.NORM.INV(RAND(),A4,A5) -> 17.92886196 | H40: =getformula(G40) -> <-- =NORM.INV(RAND(),A4,A5) | N40: =RAND() -> 0.05810756783
B41: -3 | C41: =B41*$A$5+$A$4 -> -10 | D41: 0 | E41: 0 | G41: Build the data table (Green fill), convert the results to values, then sort:
G42: Data Table | H42: =G40 -> 17.92886196 | I42: =getformula(H42) -> <-- =G40
B43: =B40+1 -> -2 | C43: =B43*$A$5+$A$4 -> 0 | D43: =$A$40 -> 0.03989422804 | E43: 1 | G43: 1 | H43: -14.50554457 | I43: =G43/10000 -> 0.0001
B44: =B41+1 -> -2 | C44: =B44*$A$5+$A$4 -> 0 | D44: 0 | E44: 0 | G44: 2 | H44: -13.77452668 | I44: 0.0002
G45: 3 | H45: -12.18991406 | I45: 0.0003
B46: =B43+1 -> -1 | C46: =B46*$A$5+$A$4 -> 10 | D46: =$A$40 -> 0.03989422804 | E46: 1 | G46: 4 | H46: -11.87768365 | I46: 0.0004
B47: =B44+1 -> -1 | C47: =B47*$A$5+$A$4 -> 10 | D47: 0 | E47: 0 | G47: 5 | H47: -11.16732634 | I47: 0.0005
G48: 6 | H48: -10.80426821 | I48: 0.0006
B49: =B46+1 -> 0 | C49: =B49*$A$5+$A$4 -> 20 | D49: =$A$40 -> 0.03989422804 | E49: 1 | G49: 7 | H49: -10.76022037 | I49: 0.0007
B50: =B47+1 -> 0 | C50: =B50*$A$5+$A$4 -> 20 | D50: 0 | E50: 0 | G50: 8 | H50: -10.63780303 | I50: 0.0008
G51: 9 | H51: -10.606255 | I51: 0.0009
B52: =B49+1 -> 1 | C52: =B52*$A$5+$A$4 -> 30 | D52: =$A$40 -> 0.03989422804 | E52: 1 | G52: 10 | H52: -10.5747677 | I52: 0.001
B53: =B50+1 -> 1 | C53: =B53*$A$5+$A$4 -> 30 | D53: 0 | E53: 0 | G53: 11 | H53: -10.32159289 | I53: 0.0011
G54: 12 | H54: -10.19334924 | I54: 0.0012
B55: =B52+1 -> 2 | C55: =B55*$A$5+$A$4 -> 40 | D55: =$A$40 -> 0.03989422804 | E55: 1 | G55: 13 | H55: -9.975869576 | I55: 0.0013
B56: =B53+1 -> 2 | C56: =B56*$A$5+$A$4 -> 40 | D56: 0 | E56: 0 | G56: 14 | H56: -9.259371868 | I56: 0.0014
G57: 15 | H57: -9.198638108 | I57: 0.0015
B58: =B55+1 -> 3 | C58: =B58*$A$5+$A$4 -> 50 | D58: =$A$40 -> 0.03989422804 | E58: 1 | G58: 16 | H58: -9.104543774 | I58: 0.0016
B59: 3 | C59: =B59*$A$5+$A$4 -> 50 | D59: 0 | E59: 0 | G59: 17 | H59: -9.051164762 | I59: 0.0017
G60: 18 | H60: -8.929189529 | I60: 0.0018
G61: 19 | H61: -8.875121175 | I61: 0.0019
G62: 20 | H62: -8.774078069 | I62: 0.002
G63: 21 | H63: -8.576013037 | I63: 0.0021
G64: 22 | H64: -8.292671287 | I64: 0.0022
G65: 23 | H65: -8.252995836 | I65: 0.0023
G66: 24 | H66: -8.240193724 | I66: 0.0024
G67: 25 | H67: -8.180100093 | I67: 0.0025
G68: 26 | H68: -7.805817607 | I68: 0.0026
G69: 27 | H69: -7.509052867 | I69: 0.0027
G70: 28 | H70: -7.470733975 | I70: 0.0028
G71: 29 | H71: -7.416885372 | I71: 0.0029
G72: 30 | H72: -7.292504954 | I72: 0.003
G73: 31 | H73: -6.948382852 | I73: 0.0031
G74: 32 | H74: -6.920515394 | I74: 0.0032
G75: 33 | H75: -6.898611549 | I75: 0.0033
G76: 34 | H76: -6.872103392 | I76: 0.0034
G77: 35 | H77: -6.791583588 | I77: 0.0035
G78: 36 | H78: -6.389058995 | I78: 0.0036
G79: 37 | H79: -6.354849503 | I79: 0.0037
G80: 38 | H80: -6.045592018 | I80: 0.0038
G81: 39 | H81: -6.015257122 | I81: 0.0039
G82: 40 | H82: -5.989788025 | I82: 0.004
G83: 41 | H83: -5.948859532 | I83: 0.0041
G84: 42 | H84: -5.852698503 | I84: 0.0042
G85: 43 | H85: -5.832587329 | I85: 0.0043
G86: 44 | H86: -5.815832394 | I86: 0.0044
G87: 45 | H87: -5.742665385 | I87: 0.0045
G88: 46 | H88: -5.613793142 | I88: 0.0046
G89: 47 | H89: -5.568739451 | I89: 0.0047
G90: 48 | H90: -5.527756786 | I90: 0.0048
G91: 49 | H91: -5.453408721 | I91: 0.0049
G92: 50 | H92: -5.437371568 | I92: 0.005
G93: 51 | H93: -5.393984863 | I93: 0.0051
G94: 52 | H94: -5.39010198 | I94: 0.0052
G95: 53 | H95: -5.362462082 | I95: 0.0053
G96: 54 | H96: -5.234021921 | I96: 0.0054
G97: 55 | H97: -5.217188306 | I97: 0.0055
G98: 56 | H98: -5.192627701 | I98: 0.0056
G99: 57 | H99: -5.131254011 | I99: 0.0057
G100: 58 | H100: -5.111784016 | I100: 0.0058
G101: 59 | H101: -5.10778063 | I101: 0.0059
G102: 60 | H102: -5.098137528 | I102: 0.006
G103: 61 | H103: -5.093715941 | I103: 0.0061
G104: 62 | H104: -5.085616669 | I104: 0.0062
G105: 63 | H105: -4.99498361 | I105: 0.0063
G106: 64 | H106: -4.894843264 | I106: 0.0064
G107: 65 | H107: -4.891420048 | I107: =G107/10000 -> 0.0065
G108: 66 | H108: -4.885459355 | I108: 0.0066
G109: 67 | H109: -4.831991639 | I109: 0.0067
G110: 68 | H110: -4.674875287 | I110: 0.0068
G111: 69 | H111: -4.596393439 | I111: 0.0069
G112: 70 | H112: -4.507582286 | I112: 0.007
G113: 71 | H113: -4.452935816 | I113: 0.0071
G114: 72 | H114: -4.360639566 | I114: 0.0072
G115: 73 | H115: -4.335460385 | I115: 0.0073
G116: 74 | H116: -4.319345745 | I116: 0.0074
G117: 75 | H117: -4.30794725 | I117: 0.0075
G118: 76 | H118: -4.233246404 | I118: 0.0076
G119: 77 | H119: -4.228341821 | I119: 0.0077
G120: 78 | H120: -4.201992932 | I120: 0.0078
G121: 79 | H121: -4.193480688 | I121: 0.0079
G122: 80 | H122: -4.170192879 | I122: 0.008
G123: 81 | H123: -4.153431228 | I123: 0.0081
G124: 82 | H124: -4.082435895 | I124: 0.0082
G125: 83 | H125: -3.993407378 | I125: 0.0083
G126: 84 | H126: -3.98621254 | I126: 0.0084
G127: 85 | H127: -3.949607045 | I127: 0.0085
G128: 86 | H128: -3.929078429 | I128: 0.0086
G129: 87 | H129: -3.889129186 | I129: 0.0087
G130: 88 | H130: -3.857350629 | I130: 0.0088
G131: 89 | H131: -3.847684521 | I131: 0.0089
G132: 90 | H132: -3.81706416 | I132: 0.009
G133: 91 | H133: -3.67633528 | I133: 0.0091
G134: 92 | H134: -3.675813897 | I134: 0.0092
G135: 93 | H135: -3.673769157 | I135: 0.0093
G136: 94 | H136: -3.609001964 | I136: 0.0094
G137: 95 | H137: -3.60808074 | I137: 0.0095
G138: 96 | H138: -3.580040096 | I138: 0.0096
G139: 97 | H139: -3.566835083 | I139: 0.0097
G140: 98 | H140: -3.525701079 | I140: 0.0098
G141: 99 | H141: -3.478150149 | I141: 0.0099
G142: 100 | H142: -3.431055859 | I142: 0.01
G143: 101 | H143: -3.420829972 | I143: 0.0101
G144: 102 | H144: -3.388640945 | I144: 0.0102
G145: 103 | H145: -3.352753136 | I145: 0.0103
G146: 104 | H146: -3.335767871 | I146: 0.0104
G147: 105 | H147: -3.32394018 | I147: 0.0105
G148: 106 | H148: -3.179833669 | I148: 0.0106
G149: 107 | H149: -3.143078528 | I149: 0.0107
G150: 108 | H150: -3.136414665 | I150: 0.0108
G151: 109 | H151: -3.083380449 | I151: 0.0109
G152: 110 | H152: -2.987911941 | I152: 0.011
G153: 111 | H153: -2.923821121 | I153: 0.0111
G154: 112 | H154: -2.865536653 | I154: 0.0112
G155: 113 | H155: -2.865050022 | I155: 0.0113
G156: 114 | H156: -2.848792268 | I156: 0.0114
G157: 115 | H157: -2.837423299 | I157: 0.0115
G158: 116 | H158: -2.816369917 | I158: 0.0116
G159: 117 | H159: -2.809092031 | I159: 0.0117
G160: 118 | H160: -2.749812485 | I160: 0.0118
G161: 119 | H161: -2.724065588 | I161: 0.0119
G162: 120 | H162: -2.71140649 | I162: 0.012
G163: 121 | H163: -2.685991044 | I163: 0.0121
G164: 122 | H164: -2.672460756 | I164: 0.0122
G165: 123 | H165: -2.664806671 | I165: 0.0123
G166: 124 | H166: -2.652071888 | I166: 0.0124
G167: 125 | H167: -2.63000937 | I167: 0.0125
G168: 126 | H168: -2.605485769 | I168: 0.0126
G169: 127 | H169: -2.558750191 | I169: 0.0127
G170: 128 | H170: -2.555403367 | I170: 0.0128
G171: 129 | H171: -2.536709641 | I171: =G171/10000 -> 0.0129
G172: 130 | H172: -2.510427257 | I172: 0.013
G173: 131 | H173: -2.471955598 | I173: 0.0131
G174: 132 | H174: -2.433860499 | I174: 0.0132
G175: 133 | H175: -2.394983223 | I175: 0.0133
G176: 134 | H176: -2.390665616 | I176: 0.0134
G177: 135 | H177: -2.366544363 | I177: 0.0135
G178: 136 | H178: -2.362506382 | I178: 0.0136
G179: 137 | H179: -2.360837139 | I179: 0.0137
G180: 138 | H180: -2.354563261 | I180: 0.0138
G181: 139 | H181: -2.27334555 | I181: 0.0139
G182: 140 | H182: -2.26279797 | I182: 0.014
G183: 141 | H183: -2.233017682 | I183: 0.0141
G184: 142 | H184: -2.204237195 | I184: 0.0142
G185: 143 | H185: -2.184968397 | I185: 0.0143
G186: 144 | H186: -2.155101044 | I186: 0.0144
G187: 145 | H187: -2.140622289 | I187: 0.0145
G188: 146 | H188: -2.108088561 | I188: 0.0146
G189: 147 | H189: -2.021970619 | I189: 0.0147
G190: 148 | H190: -2.007919442 | I190: 0.0148
G191: 149 | H191: -1.921399191 | I191: 0.0149
G192: 150 | H192: -1.901954699 | I192: 0.015
G193: 151 | H193: -1.886059087 | I193: 0.0151
G194: 152 | H194: -1.856038521 | I194: 0.0152
G195: 153 | H195: -1.784526693 | I195: 0.0153
G196: 154 | H196: -1.731122714 | I196: 0.0154
G197: 155 | H197: -1.693491602 | I197: 0.0155
G198: 156 | H198: -1.647590909 | I198: 0.0156
G199: 157 | H199: -1.604559464 | I199: 0.0157
G200: 158 | H200: -1.593560366 | I200: 0.0158
G201: 159 | H201: -1.574734431 | I201: 0.0159
G202: 160 | H202: -1.53950024 | I202: 0.016
G203: 161 | H203: -1.527008637 | I203: 0.0161
G204: 162 | H204: -1.522372576 | I204: 0.0162
... 9838 more rows

Sheet Picture
A2: 0.15 | B2: mean | G2: Vertical Green Lines
A3: 0.2 | B3: standard deviation | G3: X | H3: Y
A4: 0.25 | B4: graph increment | G4: 0.25 | H4: =_xlfn.NORM.DIST(G4,$A$2,$A$3,0) -> 1.760326634
B5: # SDs | C5: X | D5: Probability | E5: Cum Prob | G5: =G4 -> 0.25 | H5: 0
A6: 1 | B6: -3.5 | C6: =B6*$A$3+$A$2 -> -0.55 | D6: =_xlfn.NORM.DIST(C6,$A$2,$A$3,0) -> 0.004363413475 | E6: =_xlfn.NORM.DIST(C6,$A$2,$A$3,1) -> 0.000232629079
A7: =1+A6 -> 2 | B7: =B6+$A$4 -> -3.25 | C7: =B7*$A$3+$A$2 -> -0.5 | D7: =_xlfn.NORM.DIST(C7,$A$2,$A$3,0) -> 0.01014524029 | E7: =_xlfn.NORM.DIST(C7,$A$2,$A$3,1) -> 0.0005770250424 | G7: -0.1 | H7: =_xlfn.NORM.DIST(G7,$A$2,$A$3,0) -> 0.9132454269
A8: 3 | B8: =B7+$A$4 -> -3 | C8: -0.45 | D8: 0.02215924206 | E8: 0.001349898032 | G8: =G7 -> -0.1 | H8: 0
A9: 4 | B9: -2.75 | C9: -0.4 | D9: 0.04546781251 | E9: 0.002979763235
A10: 5 | B10: -2.5 | C10: -0.35 | D10: 0.08764150247 | E10: 0.006209665326
A11: 6 | B11: -2.25 | C11: -0.3 | D11: 0.1586982592 | E11: 0.01222447266
A12: 7 | B12: -2 | C12: -0.25 | D12: 0.2699548326 | E12: 0.02275013195
A13: 8 | B13: -1.75 | C13: -0.2 | D13: 0.4313865941 | E13: 0.04005915686
A14: 9 | B14: -1.5 | C14: -0.15 | D14: 0.6475879783 | E14: 0.06680720127
A15: 10 | B15: -1.25 | C15: -0.1 | D15: 0.9132454269 | E15: 0.1056497737
A16: 11 | B16: -1 | C16: -0.05 | D16: 1.209853623 | E16: 0.1586552539
A17: 12 | B17: -0.75 | C17: 0 | D17: 1.505687161 | E17: 0.2266273524
A18: 13 | B18: -0.5 | C18: 0.05 | D18: 1.760326634 | E18: 0.3085375387
A19: 14 | B19: -0.25 | C19: 0.1 | D19: 1.933340584 | E19: 0.4012936743
A20: 15 | B20: 0 | C20: 0.15 | D20: 1.994711402 | E20: 0.5
A21: 16 | B21: 0.25 | C21: 0.2 | D21: 1.933340584 | E21: 0.5987063257
A22: 17 | B22: 0.5 | C22: 0.25 | D22: 1.760326634 | E22: 0.6914624613
A23: 18 | B23: 0.75 | C23: 0.3 | D23: 1.505687161 | E23: 0.7733726476
A24: 19 | B24: 1 | C24: 0.35 | D24: 1.209853623 | E24: 0.8413447461
A25: 20 | B25: 1.25 | C25: 0.4 | D25: 0.9132454269 | E25: 0.8943502263
A26: 21 | B26: 1.5 | C26: 0.45 | D26: 0.6475879783 | E26: 0.9331927987
A27: 22 | B27: 1.75 | C27: 0.5 | D27: 0.4313865941 | E27: 0.9599408431
A28: 23 | B28: 2 | C28: 0.55 | D28: 0.2699548326 | E28: 0.9772498681
A29: 24 | B29: 2.25 | C29: 0.6 | D29: 0.1586982592 | E29: 0.9877755273
A30: 25 | B30: 2.5 | C30: 0.65 | D30: 0.08764150247 | E30: 0.9937903347
A31: 26 | B31: 2.75 | C31: 0.7 | D31: 0.04546781251 | E31: 0.9970202368
A32: 27 | B32: 3 | C32: 0.75 | D32: 0.02215924206 | E32: 0.998650102
A33: 28 | B33: 3.25 | C33: 0.8 | D33: 0.01014524029 | E33: 0.999422975
A34: 29 | B34: 3.5 | C34: 0.85 | D34: 0.004363413475 | E34: 0.9997673709
A37: Data for Vertical chart lines marking standard deviations from mean.
A38: =MAX(D6:D34) -> 1.994711402 | B38: -3 | C38: =B38*$A$3+$A$2 -> -0.45 | D38: =_xlfn.NORM.DIST(C38,$A$2,$A$3,0) -> 0.02215924206 | E38: 1
B39: -3 | C39: =B39*$A$3+$A$2 -> -0.45 | D39: 0 | E39: 0
B41: =B38+1 -> -2 | C41: =B41*$A$3+$A$2 -> -0.25 | D41: =_xlfn.NORM.DIST(C41,$A$2,$A$3,0) -> 0.2699548326 | E41: 1
B42: =B39+1 -> -2 | C42: =B42*$A$3+$A$2 -> -0.25 | D42: 0 | E42: 0
B44: =B41+1 -> -1 | C44: =B44*$A$3+$A$2 -> -0.05 | D44: =_xlfn.NORM.DIST(C44,$A$2,$A$3,0) -> 1.209853623 | E44: 1
B45: =B42+1 -> -1 | C45: =B45*$A$3+$A$2 -> -0.05 | D45: 0 | E45: 0
B47: =B44+1 -> 0 | C47: =B47*$A$3+$A$2 -> 0.15 | D47: =_xlfn.NORM.DIST(C47,$A$2,$A$3,0) -> 1.994711402 | E47: 1
B48: =B45+1 -> 0 | C48: =B48*$A$3+$A$2 -> 0.15 | D48: 0 | E48: 0
B50: =B47+1 -> 1 | C50: =B50*$A$3+$A$2 -> 0.35 | D50: =_xlfn.NORM.DIST(C50,$A$2,$A$3,0) -> 1.209853623 | E50: 1
B51: =B48+1 -> 1 | C51: =B51*$A$3+$A$2 -> 0.35 | D51: 0 | E51: 0
B53: =B50+1 -> 2 | C53: =B53*$A$3+$A$2 -> 0.55 | D53: =_xlfn.NORM.DIST(C53,$A$2,$A$3,0) -> 0.2699548326 | E53: 1
B54: =B51+1 -> 2 | C54: =B54*$A$3+$A$2 -> 0.55 | D54: 0 | E54: 0
B56: =B53+1 -> 3 | C56: =B56*$A$3+$A$2 -> 0.75 | D56: =_xlfn.NORM.DIST(C56,$A$2,$A$3,0) -> 0.02215924206 | E56: 1
B57: 3 | C57: =B57*$A$3+$A$2 -> 0.75 | D57: 0 | E57: 0

Sheet Functions
A36: In the examples below note that the stock's rate of return is normally
A37: distributed, NOT the price!
A39: EXAMPLE 1: NORM.DIST
A40: XYZ stock's continuously compounded annual rate of return is normally
A41: distributed as follows:
B42: Mean | C42: 0.15
B43: Variance | C43: 0.04
A45: Calculate the probability that the continuously compounded annual rate of
A46: return on XYZ stock is between zero and 20 percent.
B47: Rate 1 | C47: 0
B48: Rate 2 | C48: 0.2
B49: Mean Return | C49: 0.15
B50: Return Standard Deviation | C50: =C43^0.5 -> 0.2 | D50: ="<-- "&_xlfn.FORMULATEXT(C50) -> <-- =C43^0.5
B52: P(x<Rate1) | C52: =NORMDIST(C47,C49,C50,1) -> 0.2266273524 | D52: ="<-- "&_xlfn.FORMULATEXT(C52) -> <-- =NORMDIST(C47,C49,C50,1)
B53: P(x>Rate2) | C53: =1-NORMDIST(C48,C49,C50,1) -> 0.4012936743 | D53: <-- =1-NORMDIST(C48,C49,C50,1)
B54: P(x<Rate1 and x>Rate2) | C54: =C52+C53 -> 0.6279210267 | D54: <-- =C52+C53
B55: P(Rate1<x<Rate2) | C55: =1-C54 -> 0.3720789733 | D55: ="<-- "&_xlfn.FORMULATEXT(C55) -> <-- =1-C54
A57: EXAMPLE 2: NORM.DIST
A58: Assume that XYZ stock (above) is currently priced at $50 per share.
A59: Calculate the probability that the price one year from today will be greater
A60: than $75.
B61: ROR Needed | C61: =LN(75/50) -> 0.4054651081 | D61: ="<-- "&_xlfn.FORMULATEXT(C61) -> <-- =LN(75/50)
B62: Mean Return | C62: =C42 -> 0.15 | D62: ="<-- "&_xlfn.FORMULATEXT(C62) -> <-- =C42
B63: Return Standard Deviation | C63: =C50 -> 0.2 | D63: ="<-- "&_xlfn.FORMULATEXT(C63) -> <-- =C50
B64: ="P(Return>"&FIXED(C61*100,2)&"%)" -> P(Return>40.55%) | C64: =1-NORMDIST(C61,C62,C63,1) -> 0.1007436701 | D64: ="<-- "&_xlfn.FORMULATEXT(C64) -> <-- =1-NORMDIST(C61,C62,C63,1)
A66: EXAMPLE 3: NORM.INV
A67: What continuously compounded annual rate of return on XYZ stock (R) has
A68: only a ten percent chance of being higher than that rate (R) ?
B69: The answer to this question is not a probability - it is a rate of
B70: return, specifically the 90%ile rate.
B72: Rate of Return | C72: =_xlfn.NORM.INV(1-10%,C62,C63) -> 0.4063103131 | D72: ="<-- "&_xlfn.FORMULATEXT(C72) -> <-- =NORM.INV(1-10%,C62,C63)
A74: 90% of the time ROR will be lower than this & 10% of the time higher!

Sheet StockSim
A1: CONCEPTUALIZING THE LOGNORMAL DISTRIBUTION
B2: 0.1 | C2: Mean (Annual Return)
B3: 0.4 | C3: Sigma (Return Annual StDev)
B4: =1/250 -> 0.004 | C4: Dt (Time Increment in Years)
B5: 50 | C5: Initial stock price
A6: Time | B6: Normal deviates | C6: Continuous Return | D6: Stock price
A7: 0 | D7: =B5 -> 50 | E7: =getformula(D7) -> <-- =B5
A8: 1 | B8: =_xlfn.NORM.INV(RAND(),0,1) -> 0.5436093805 | C8: =LN(D8/D7) -> 0.0141523504 | D8: =D7*EXP(Mean*deltat+Sigma*SQRT(deltat)*B8) -> 50.71264845 | E8: =getformula(D8) -> <-- =D7*EXP(Mean*deltat+Sigma*SQRT(deltat)*B8)
A9: 2 | B9: =_xlfn.NORM.INV(RAND(),0,1) -> -0.6110844883 | C9: =LN(D9/D8) -> -0.01505935061 | D9: 49.95467055
A10: 3 | B10: -1.646482567 | C10: -0.04125308031 | D10: 47.93581482
A11: 4 | B11: -1.205672647 | C11: -0.03010137342 | D11: 46.51438183
A12: 5 | B12: -0.8031167848 | C12: -0.01991742614 | D12: 45.59710034
A13: 6 | B13: -0.6235134569 | C13: -0.0153737814 | D13: 44.90146148
A14: 7 | B14: -1.038407056 | C14: -0.02586985148 | D14: 43.75476374
A15: 8 | B15: -0.9649435161 | C15: -0.02401135459 | D15: 42.71666554
A16: 9 | B16: 0.583226096 | C16: 0.01515458283 | D16: 43.36894885
A17: 10 | B17: 0.05986462281 | C17: 0.001914468475 | D17: 43.45205686
A18: 11 | B18: -1.884533453 | C18: -0.04727534431 | D18: 41.44564646
A19: 12 | B19: -1.053056005 | C19: -0.02624044385 | D19: 40.37223923
A20: 13 | B20: 1.07941828 | C20: 0.02770736249 | D20: 41.50648846
A21: 14 | B21: 0.5754791342 | C21: 0.01495859848 | D21: 42.13203434
A22: 15 | B22: 0.9120023293 | C22: 0.02347203673 | D22: 43.13265638
A23: 16 | B23: -0.4487611379 | C23: -0.01095285857 | D23: 42.66280828
A24: 17 | B24: -0.4299391359 | C24: -0.0104766954 | D24: 42.21817623
A25: 18 | B25: -0.6495616201 | C25: -0.0160327536 | D25: 41.54669981
A26: 19 | B26: 1.78001939 | C26: 0.04543132442 | D26: 43.47775446
A27: 20 | B27: 1.178855081 | C27: 0.03022293669 | D27: 44.8118383 | F27: Research has found that most stocks and portfolios of stocks
A28: 21 | B28: 1.041952616 | C28: 0.02675954783 | D28: 46.02717119 | F28: have continuously compounded returns that are approximately
A29: 22 | B29: 0.5343102919 | C29: 0.0139171 | D29: 46.67221408 | F29: normally distributed and independent.
A30: 23 | B30: 0.3620269798 | C30: 0.009558638644 | D30: 47.12047589
A31: 24 | B31: 0.6606400495 | C31: 0.01711301816 | D31: 47.93378872 | F31: StDev | G31: Bin | H31: Frequency | I31: X:Return | J31: Y: Probability
A32: 25 | B32: -0.4723618486 | C32: -0.01154991457 | D32: 47.38334247 | F32: -3 | G32: =($F32+0.5)*Sigma*deltat^0.5+Mean*deltat -> -0.0628455532 | H32: =FREQUENCY(C8:C257,G32:G38) -> 2 | I32: =($F32)*Sigma*deltat^0.5+Mean*deltat -> -0.07549466384 | J32: =H32/$H$39 -> 0.008
A33: 26 | B33: 0.609300183 | C33: 0.01581421086 | D33: 48.13862903 | F33: =F32+1 -> -2 | G33: -0.03754733192 | H33: 11 | I33: -0.05019644256 | J33: 0.044
A34: 27 | B34: -1.253665601 | C34: -0.03131550978 | D34: 46.65450269 | F34: =F33+1 -> -1 | G34: -0.01224911064 | H34: 80 | I34: -0.02489822128 | J34: 0.32
A35: 28 | B35: 0.9491352953 | C35: 0.02441143473 | D35: 47.80742098 | F35: 0 | G35: 0.01304911064 | H35: 75 | I35: 0.0004 | J35: 0.3
A36: 29 | B36: 1.771498067 | C36: 0.04521575009 | D36: 50.01868463 | F36: 1 | G36: 0.03834733192 | H36: 65 | I36: 0.02569822128 | J36: 0.26
A37: 30 | B37: 0.7852216799 | C37: 0.02026471181 | D37: 51.04263889 | F37: 2 | G37: 0.0636455532 | H37: 16 | I37: 0.05099644256 | J37: 0.064
A38: 31 | B38: 1.462454233 | C38: 0.03739749079 | D38: 52.98764806 | F38: 3 | G38: =(2*$F38+0.5)*Sigma*deltat^0.5+Mean*deltat -> 0.1648384383 | H38: 1 | I38: 0.07629466384 | J38: 0.004
A39: 32 | B39: 1.673512953 | C39: 0.04273690101 | D39: 55.30126214 | H39: =SUM(H32:H38) -> 250
A40: 33 | B40: -1.493038585 | C40: -0.0373712205 | D40: 53.27272698
A41: 34 | B41: 0.5540334686 | C41: 0.01441606129 | D41: 54.04627222
A42: 35 | B42: 1.00466919 | C42: 0.02581634348 | D42: 55.45971582
A43: 36 | B43: 0.7458522317 | C43: 0.0192687348 | D43: 56.53871648
A44: 37 | B44: -0.7712715822 | C44: -0.01911179915 | D44: 55.46842011
A45: 38 | B45: -1.096136584 | C45: -0.02733030585 | D45: 53.97297973
A46: 39 | B46: 1.087606691 | C46: 0.02791451473 | D46: 55.50083472
A47: 40 | B47: -0.1360323234 | C47: -0.003041375819 | D47: 55.33229225
A48: 41 | B48: -1.152964077 | C48: -0.02876794035 | D48: 53.76317453
A49: 42 | B49: 0.2965564979 | C49: 0.007902351906 | D49: 54.18971316
A50: 43 | B50: 0.1797176843 | C50: 0.004946537746 | D50: 54.45842868
A51: 44 | B51: -1.108886242 | C51: -0.02765284951 | D51: 52.97312898
A52: 45 | B52: -1.142868527 | C52: -0.02851254088 | D52: 51.48405992
A53: 46 | B53: 0.5729782969 | C53: 0.01489533174 | D53: 52.25667195
A54: 47 | B54: -2.513251803 | C54: -0.06318080024 | D54: 49.05719073
A55: 48 | B55: -0.417475024 | C55: -0.01016137554 | D55: 48.5612263
A56: 49 | B56: 0.7857648916 | C56: 0.0202784541 | D56: 49.5560253
A57: 50 | B57: 1.113487422 | C57: 0.02856925118 | D57: 50.99222168
A58: 51 | B58: -0.3231540322 | C58: -0.007775222214 | D58: 50.59728318
A59: 52 | B59: -1.06013798 | C59: -0.0264196052 | D59: 49.27802679
A60: 53 | B60: -2.267246761 | C60: -0.05695731027 | D60: 46.54971901
A61: 54 | B61: -1.209064638 | C61: -0.03018718475 | D61: 45.16551181
A62: 55 | B62: 1.36756313 | C62: 0.03499691467 | D62: 46.77414988
A63: 56 | B63: 0.1500127025 | C63: 0.004195054542 | D63: 46.97078214
A64: 57 | B64: 0.1303896436 | C64: 0.003698626055 | D64: 47.14483117
A65: 58 | B65: 1.864899307 | C65: 0.04757863534 | D65: 49.44213586
A66: 59 | B66: -0.859801882 | C66: -0.02135145827 | D66: 48.39766433
A67: 60 | B67: -0.991335845 | C67: -0.02467903357 | D67: 47.21787466
A68: 61 | B68: -0.797421742 | C68: -0.01977335168 | D68: 46.29338923
A69: 62 | B69: 0.9134644063 | C69: 0.02350902468 | D69: 47.39459508
A70: 63 | B70: -0.5919336162 | C70: -0.01457486761 | D70: 46.7088347
A71: 64 | B71: 0.007507520764 | C71: 0.0005899269216 | D71: 46.73639763
A72: 65 | B72: -1.517360175 | C72: -0.03798651348 | D72: =D71*EXP(Mean*deltat+Sigma*SQRT(deltat)*B72) -> 44.99434162
A73: 66 | B73: =_xlfn.NORM.INV(RAND(),0,1) -> -0.6045434914 | C73: =LN(D73/D72) -> -0.01489387502 | D73: 44.32916733
A74: 67 | B74: 0.0910896319 | C74: 0.002704405664 | D74: 44.44921364
A75: 68 | B75: 1.502176002 | C75: 0.03840238091 | D75: 46.18936846
A76: 69 | B76: 1.478838373 | C76: 0.0378119804 | D76: 47.96931963
A77: 70 | B77: -0.3401689522 | C77: -0.008205669425 | D77: 47.5773098
A78: 71 | B78: -0.6863472108 | C78: -0.01696336361 | D78: 46.77704537
A79: 72 | B79: 0.04970289971 | C79: 0.001657394955 | D79: 46.85463769
A80: 73 | B80: -0.2342147241 | C80: -0.005525215918 | D80: 46.59646958
A81: 74 | B81: -1.882534496 | C81: -0.04722477424 | D81: 44.44711271
A82: 75 | B82: 0.2629752793 | C82: 0.007052806808 | D82: 44.76169766
A83: 76 | B83: -0.5870318194 | C83: -0.01445086087 | D83: 44.11950389
A84: 77 | B84: 0.2791648669 | C84: 0.007462374577 | D84: 44.44997166
A85: 78 | B85: 0.980834039 | C85: 0.02521335656 | D85: 45.58495286
A86: 79 | B86: 1.638323278 | C86: 0.04184666482 | D86: 47.53300661
A87: 80 | B87: 1.371471986 | C87: 0.03509580178 | D87: 49.23083464
A88: 81 | B88: 0.6631781552 | C88: 0.01717722772 | D88: 50.08378862
A89: 82 | B89: 2.077362829 | C89: 0.05295358453 | D89: 52.80738032
A90: 83 | B90: -1.618304297 | C90: -0.04054022021 | D90: 50.7093717
A91: 84 | B91: 0.2636652747 | C91: 0.007070262465 | D91: 51.0691707
A92: 85 | B92: 1.280217838 | C92: 0.03278723415 | D92: 52.77133978
A93: 86 | B93: -0.7374088754 | C93: -0.01825513291 | D93: 51.81673172
A94: 87 | B94: -2.394079609 | C94: -0.06016595572 | D94: 48.79106235
A95: 88 | B95: -1.376830666 | C95: -0.03443136685 | D95: 47.13971166
A96: 89 | B96: 0.1383881022 | C96: 0.003900972833 | D96: 47.32396153
A97: 90 | B97: 0.1868778057 | C97: 0.005127676082 | D97: 47.56724669
A98: 91 | B98: 0.9780604411 | C98: 0.02514318947 | D98: 48.77840133
A99: 92 | B99: 1.130818764 | C99: 0.02900770331 | D99: 50.21407282
A100: 93 | B100: -1.566373739 | C100: -0.03922646945 | D100: 48.28248439
A101: 94 | B101: -1.325941932 | C101: -0.03314397239 | D101: 46.70844019
A102: 95 | B102: 0.50317238 | C102: 0.01312936621 | D102: 47.32573589
A103: 96 | B103: 0.1019102364 | C103: 0.002978147712 | D103: 47.46688901
A104: 97 | B104: -0.05257669269 | C104: -0.0009300968058 | D104: 47.42276073
A105: 98 | B105: -0.552610731 | C105: -0.01358006856 | D105: 46.78310948
A106: 99 | B106: -0.1631291534 | C106: -0.003726877421 | D106: 46.60907906
A107: 100 | B107: 1.696290183 | C107: 0.0433131244 | D107: 48.67222195
A108: 101 | B108: -1.170007167 | C108: -0.02919910022 | D108: 47.27158504
A109: 102 | B109: 0.6816184876 | C109: 0.01764373533 | D109: 48.1130337
A110: 103 | B110: -0.7838125679 | C110: -0.01942906379 | D110: 47.18726503
A111: 104 | B111: 0.1268494052 | C111: 0.003609064323 | D111: 47.35787459
A112: 105 | B112: -1.251968661 | C112: -0.03127258022 | D112: 45.89978952
A113: 106 | B113: 0.07214564101 | C113: 0.002225156391 | D113: 46.00203745
A114: 107 | B114: 1.153119561 | C114: 0.02957187383 | D114: 47.38271794
A115: 108 | B115: -0.3846628819 | C115: -0.009331286705 | D115: 46.94263269
A116: 109 | B116: -1.021692105 | C116: -0.02544699294 | D116: 45.76315458
A117: 110 | B117: 0.717985448 | C117: 0.01856375474 | D117: 46.62062486
A118: 111 | B118: -1.117035795 | C118: -0.02785901873 | D118: 45.33974487
A119: 112 | B119: 0.4287092623 | C119: 0.01124558178 | D119: 45.85249436
A120: 113 | B120: -0.9224873481 | C120: -0.02293728906 | D120: 44.81273269
A121: 114 | B121: -0.7218154962 | C121: -0.01786064815 | D121: 44.01945357
A122: 115 | B122: 0.8185181005 | C122: 0.02110705203 | D122: 44.95844932
A123: 116 | B123: -0.2385701252 | C123: -0.005635399819 | D123: 44.70580303
A124: 117 | B124: 0.6046270346 | C124: 0.01569598851 | D124: 45.41304068
A125: 118 | B125: 0.3817937222 | C125: 0.01005870207 | D125: 45.87214204
A126: 119 | B126: 1.020341272 | C126: 0.02621281927 | D126: 47.09047846
A127: 120 | B127: -1.395673812 | C127: -0.03490806492 | D127: 45.47500161
A128: 121 | B128: -0.5229114075 | C128: -0.0128287285 | D128: 44.89534126
A129: 122 | B129: -1.350263692 | C129: -0.03375926966 | D129: 43.4050052
A130: 123 | B130: 0.198202811 | C130: 0.005414178571 | D130: 43.64064497
A131: 124 | B131: 1.890058324 | C131: 0.04821511372 | D131: 45.79633444
A132: 125 | B132: 0.7947986005 | C132: 0.02050699087 | D132: 46.74517514
A133: 126 | B133: 0.09047125678 | C133: 0.002688761874 | D133: 46.87103091
A134: 127 | B134: 0.4530313299 | C134: 0.01186088683 | D134: 47.4302729
A135: 128 | B135: -0.4347035196 | C135: -0.01059722583 | D135: 46.93029744
A136: 129 | B136: -0.1987686596 | C136: -0.004628493535 | D136: =D135*EXP(Mean*deltat+Sigma*SQRT(deltat)*B136) -> 46.71358278
A137: 130 | B137: =_xlfn.NORM.INV(RAND(),0,1) -> 0.7746013114 | C137: =LN(D137/D136) -> 0.01999603538 | D137: 47.65707081
A138: 131 | B138: -0.6612475055 | C138: -0.01632838572 | D138: 46.88522641
A139: 132 | B139: 1.174446987 | C139: 0.03011141976 | D139: 48.31847746
A140: 133 | B140: -0.1869495169 | C140: -0.004329490246 | D140: 48.10973528
A141: 134 | B141: -0.1304773983 | C141: -0.002900846095 | D141: 47.97037857
A142: 135 | B142: -0.2915111599 | C142: -0.006974713829 | D142: 47.636963
A143: 136 | B143: 1.048159033 | C143: 0.02691655917 | D143: 48.93659852
A144: 137 | B144: -0.172987356 | C144: -0.003976272411 | D144: 48.74239963
A145: 138 | B145: -1.275578928 | C145: -0.03186987798 | D145: 47.21347798
A146: 139 | B146: 2.607325716 | C146: 0.06636070291 | D146: 50.45289381
A147: 140 | B147: 0.7035983439 | C147: 0.0181997866 | D147: 51.37953245
A148: 141 | B148: -0.5894705986 | C148: -0.01451255764 | D148: 50.63926857
A149: 142 | B149: 0.7283305526 | C149: 0.01882546748 | D149: 51.60160628
A150: 143 | B150: 1.140584846 | C150: 0.02925476782 | D150: 53.1334976
A151: 144 | B151: -2.690312382 | C151: -0.06766011795 | D151: 49.65740143
A152: 145 | B152: 0.3370447986 | C152: 0.008926633896 | D152: 50.10265924
A153: 146 | B153: 0.5743352433 | C153: 0.01492966007 | D153: 50.85628661
A154: 147 | B154: -0.5467791512 | C154: -0.01343253996 | D154: 50.17772512
A155: 148 | B155: 0.5081200976 | C155: 0.01325453467 | D155: 50.84723473
A156: 149 | B156: -0.8827182883 | C156: -0.02193120259 | D156: 49.74423301
A157: 150 | B157: 0.1289791681 | C157: 0.003662943535 | D157: 49.92677745
A158: 151 | B158: -0.3335388882 | C158: -0.008037940599 | D158: 49.52707751
A159: 152 | B159: -0.1149369677 | C159: -0.002507700842 | D159: 49.40303401
A160: 153 | B160: -1.087953649 | C160: -0.02712329217 | D160: 48.08107014
A161: 154 | B161: 0.4052090817 | C161: 0.01065106901 | D161: 48.59592193
A162: 155 | B162: -0.3859117689 | C162: -0.009362881324 | D162: 48.14304749
A163: 156 | B163: -1.28247303 | C163: -0.0320442865 | D163: 46.62479348
A164: 157 | B164: 1.213803653 | C164: 0.03110707341 | D164: 48.09794834
A165: 158 | B165: 0.6722106293 | C165: 0.01740573325 | D165: 48.94245672
A166: 159 | B166: 1.205214654 | C166: 0.030889787 | D166: 50.477871
A167: 160 | B167: -0.5063252884 | C167: -0.01240912919 | D167: 49.85535501
A168: 161 | B168: 0.6645365119 | C168: 0.01721159173 | D168: 50.72087212
A169: 162 | B169: 0.5447684604 | C169: 0.01418167306 | D169: 51.44530363
A170: 163 | B170: -0.1927022995 | C170: -0.004475025415 | D170: 51.21559894
A171: 164 | B171: 0.8475057718 | C171: 0.02184038855 | D171: 52.34647192
A172: 165 | B172: -0.02686774626 | C172: -0.0002797061903 | D172: 52.33183234
A173: 166 | B173: 1.537896499 | C173: 0.03930604595 | D173: 54.42975008
A174: 167 | B174: 0.4590329295 | C174: 0.01201271663 | D174: 55.08754227
A175: 168 | B175: 0.9601457092 | C175: 0.02468997861 | D175: 56.4645821
A176: 169 | B176: -1.287114566 | C176: -0.03216170911 | D176: 54.67747685
A177: 170 | B177: -0.5568463768 | C177: -0.01368722286 | D177: 53.9341924
A178: 171 | B178: -0.019908871 | C178: -0.0001036590241 | D178: 53.92860192
A179: 172 | B179: -0.3848303678 | C179: -0.0093355238 | D179: 53.42749287
A180: 173 | B180: 0.8383115808 | C180: 0.02160779187 | D180: 54.5945059
A181: 174 | B181: 0.7934603072 | C181: 0.02047313443 | D181: 55.72374666
A182: 175 | B182: 0.4384966618 | C182: 0.01149318558 | D182: 56.36788453
A183: 176 | B183: -2.036298683 | C183: -0.05111473467 | D183: 53.55905294
A184: 177 | B184: 0.03988619961 | C184: 0.001409049904 | D184: 53.63457351
A185: 178 | B185: -1.319562421 | C185: -0.03298258212 | D185: 51.89442188
A186: 179 | B186: 0.1052230069 | C186: 0.003061954912 | D186: 52.05356378
A187: 180 | B187: -0.8286675036 | C187: -0.02056381388 | D187: 50.99407489
A188: 181 | B188: -1.401788118 | C188: -0.03506274599 | D188: 49.23706538
A189: 182 | B189: 1.804612131 | C189: 0.04605347702 | D189: 51.55762831
A190: 183 | B190: -0.6648863022 | C190: -0.0164204408 | D190: 50.7179422
A191: 184 | B191: 1.105639112 | C191: 0.02837070291 | D191: 52.17745163
A192: 185 | B192: -0.6546579884 | C192: -0.01616168265 | D192: 51.34095402
A193: 186 | B193: 0.2340279599 | C193: 0.006320491114 | D193: 51.66648173
A194: 187 | B194: -0.2010937463 | C194: -0.004687314091 | D194: 51.4248714
A195: 188 | B195: 0.1328062568 | C195: 0.003759762073 | D195: 51.6185806
A196: 189 | B196: 0.4589792758 | C196: 0.01201135928 | D196: 52.24232845
A197: 190 | B197: -0.9301441627 | C197: -0.02313099285 | D197: 51.04778033
A198: 191 | B198: -0.8196361076 | C198: -0.02033533562 | D198: 50.02019019
A199: 192 | B199: -0.5541127153 | C199: -0.01361806609 | D199: 49.34362911
A200: 193 | B200: 0.4670015161 | C200: 0.01221430769 | D200: =D199*EXP(Mean*deltat+Sigma*SQRT(deltat)*B200) -> 49.95002319
... 57 more rows

Sheet StockSim (2)
A1: CONCEPTUALIZING THE LOGNORMAL DISTRIBUTION
B2: 0.1 | C2: Mean (Annual Return) | F2: 250 | G2: Trading Days in a Year
B3: 0.4 | C3: Sigma (Return Annual StDev) | F3: =Mean/F2 -> 0.0004 | G3: Daily Mean Return
B4: =1/250 -> 0.004 | C4: Dt (Time Increment in Years) | F4: =Sigma^2/F2 -> 0.00064 | G4: Daily Variance
B5: 50 | C5: Initial stock price | F5: =F4^0.5 -> 0.02529822128 | G5: Daily Standard Deviation
A6: Time | C6: Daily Return | D6: Stock price
A7: 0 | D7: =B5 -> 50 | E7: =getformula(D7) -> <-- =B5
A8: 1 | C8: =_xlfn.NORM.INV(RAND(),$F$3,$F$5) -> 0.009056895516 | D8: =D7*EXP(C8) -> 50.45490166 | E8: =getformula(D8) -> <-- =D7*EXP(C8)
A9: 2 | C9: -0.01550577341 | D9: =D8*EXP(C9) -> 49.67859357
A10: 3 | C10: -0.02141246657 | D10: 48.62616016
A11: 4 | C11: 0.03376008869 | D11: 50.2958088
A12: 5 | C12: -0.02732694572 | D12: 48.93998757
A13: 6 | C13: -0.02166872195 | D13: 47.89092752
A14: 7 | C14: 0.0290705321 | D14: 49.30357601
A15: 8 | C15: -0.01972200371 | D15: 48.34073647
A16: 9 | C16: -0.0419960332 | D16: 46.35265524
A17: 10 | C17: -0.03135659474 | D17: 44.92174529
A18: 11 | C18: 0.03459859945 | D18: 46.50317463
A19: 12 | C19: -0.002896493257 | D19: 46.36867338
A20: 13 | C20: -0.03649959726 | D20: 44.70674975
A21: 14 | C21: 0.0306341985 | D21: 46.09749868
A22: 15 | C22: -0.002786780913 | D22: 45.96921388
A23: 16 | C23: 0.01307549995 | D23: 46.57423117
A24: 17 | C24: 0.02305793869 | D24: 47.66061367
A25: 18 | C25: -0.01014279112 | D25: 47.17964533
A26: 19 | C26: -0.01034938143 | D26: 46.69388318
A27: 20 | C27: 0.03589960271 | D27: 48.40062746 | F27: Research has found that most stocks and portfolios of stocks
A28: 21 | C28: -0.01092318548 | D28: 47.87481543 | F28: have continuously compounded returns that are approximately
A29: 22 | C29: 0.01246367451 | D29: 48.47524556 | F29: normally distributed and independent.
A30: 23 | C30: -0.04382448007 | D30: 46.39672091
A31: 24 | C31: -0.009324016797 | D31: 45.96612765 | F31: StDev | G31: Bin | H31: Frequency | I31: X:Return | J31: Y: Probability
A32: 25 | C32: 0.006034791706 | D32: 46.24436236 | F32: -3 | G32: =($F32+0.5)*Sigma*deltat^0.5+Mean*deltat -> -0.0628455532 | H32: =FREQUENCY(C8:C257,G32:G38) -> 3 | I32: =($F32)*Sigma*deltat^0.5+Mean*deltat -> -0.07549466384 | J32: =H32/$H$39 -> 0.012
A33: 26 | C33: -0.01991092774 | D33: 45.33270034 | F33: =F32+1 -> -2 | G33: =($F33+0.5)*Sigma*deltat^0.5+Mean*deltat -> -0.03754733192 | H33: 15 | I33: -0.05019644256 | J33: 0.06
A34: 27 | C34: 0.008148337369 | D34: 45.70359551 | F34: =F33+1 -> -1 | G34: -0.01224911064 | H34: 64 | I34: -0.02489822128 | J34: 0.256
A35: 28 | C35: -0.02948516585 | D35: 44.37569037 | F35: 0 | G35: 0.01304911064 | H35: 102 | I35: 0.0004 | J35: 0.408
A36: 29 | C36: 0.02758031566 | D36: 45.61661987 | F36: 1 | G36: 0.03834733192 | H36: 50 | I36: 0.02569822128 | J36: 0.2
A37: 30 | C37: -0.03996174656 | D37: 43.82964323 | F37: 2 | G37: 0.0636455532 | H37: 14 | I37: 0.05099644256 | J37: 0.056
A38: 31 | C38: -0.02481577773 | D38: 42.75536124 | F38: 3 | G38: =(2*$F38+0.5)*Sigma*deltat^0.5+Mean*deltat -> 0.1648384383 | H38: 2 | I38: 0.07629466384 | J38: 0.008
A39: 32 | C39: -0.009228741514 | D39: 42.36259821 | H39: =SUM(H32:H38) -> 250
A40: 33 | C40: 0.01203367864 | D40: 42.8754557
A41: 34 | C41: -0.01390695757 | D41: 42.28331553
A42: 35 | C42: 4.436527579e-05 | D42: 42.28519148
A43: 36 | C43: -0.03433021647 | D43: 40.85816689
A44: 37 | C44: -0.1022121574 | D44: 36.88830517
A45: 38 | C45: 0.02896030849 | D45: 37.97222138
A46: 39 | C46: -0.01103118197 | D46: 37.55564479
A47: 40 | C47: 0.006217973046 | D47: 37.78989229
A48: 41 | C48: 0.01541608005 | D48: 38.37697795
A49: 42 | C49: -0.009295156518 | D49: 38.0219107
A50: 43 | C50: 0.02193869198 | D50: 38.86527906
A51: 44 | C51: -0.01281443216 | D51: 38.37042001
A52: 45 | C52: 0.02515893479 | D52: 39.34802509
A53: 46 | C53: -0.01879654174 | D53: 38.61532598
A54: 47 | C54: -0.01376663252 | D54: 38.08736543
A55: 48 | C55: 0.01023411288 | D55: 38.47915723
A56: 49 | C56: 0.0003080856708 | D56: 38.49101393
A57: 50 | C57: -0.004418411066 | D57: 38.32131998
A58: 51 | C58: 0.03977984939 | D58: 39.87646292
A59: 52 | C59: 0.03269819499 | D59: 41.20190293
A60: 53 | C60: 0.02624460422 | D60: 42.29754503
A61: 54 | C61: -0.0008730359361 | D61: 42.26063387
A62: 55 | C62: -0.04993631903 | D62: 40.20211846
A63: 56 | C63: -0.04984586145 | D63: 38.24733294
A64: 57 | C64: -0.007948098816 | D64: 37.94454425
A65: 58 | C65: -0.01963884857 | D65: 37.20662673
A66: 59 | C66: 0.01716012681 | D66: 37.85060675
A67: 60 | C67: 0.003360136715 | D67: 37.97800388
A68: 61 | C68: -0.02151221975 | D68: 37.16973769
A69: 62 | C69: 0.03992472361 | D69: 38.68375138
A70: 63 | C70: -0.004833567166 | D70: 38.49722203
A71: 64 | C71: 0.01329487453 | D71: 39.01245516
A72: 65 | C72: =_xlfn.NORM.INV(RAND(),$F$3,$F$5) -> 0.01699769058 | D72: 39.68124464
A73: 66 | C73: 0.002653547593 | D73: =D72*EXP(C73) -> 39.78668054
A74: 67 | C74: -0.002225526701 | D74: 39.69823267
A75: 68 | C75: 0.02905137983 | D75: 40.86843683
A76: 69 | C76: -0.001359212968 | D76: 40.81292566
A77: 70 | C77: -0.03200955211 | D77: 39.52720956
A78: 71 | C78: 0.008114301176 | D78: 39.84925004
A79: 72 | C79: 0.004582717574 | D79: 40.03228699
A80: 73 | C80: 0.00233302326 | D80: 40.12579228
A81: 74 | C81: 0.0001840679631 | D81: 40.13317883
A82: 75 | C82: 0.08156891338 | D82: 43.54401684
A83: 76 | C83: 0.0220762583 | D83: 44.51599515
A84: 77 | C84: -0.02070952094 | D84: 43.60357076
A85: 78 | C85: -0.007290327887 | D85: 43.28684236
A86: 79 | C86: -0.02550242023 | D86: 42.19688052
A87: 80 | C87: -0.0142363046 | D87: 41.60040873
A88: 81 | C88: 0.03090968204 | D88: 42.90634317
A89: 82 | C89: -0.01950365833 | D89: 42.07762035
A90: 83 | C90: 0.0008648880371 | D90: 42.11402852
A91: 84 | C91: 0.01102028903 | D91: 42.58070401
A92: 85 | C92: 0.0008897683993 | D92: 42.61860784
A93: 86 | C93: 0.001308075083 | D93: 42.67439265
A94: 87 | C94: -0.01364548151 | D94: 42.09603498
A95: 88 | C95: -0.04274511412 | D95: 40.33455078
A96: 89 | C96: 0.02942061977 | D96: 41.53884696
A97: 90 | C97: -0.008771437143 | D97: 41.17608488
A98: 91 | C98: 0.00109470346 | D98: 41.22118516
A99: 92 | C99: -0.0212887216 | D99: 40.35291381
A100: 93 | C100: -0.003238879356 | D100: 40.22242702
A101: 94 | C101: -0.01092652676 | D101: 39.78532793
A102: 95 | C102: -0.04175400788 | D102: 38.15833416
A103: 96 | C103: -0.02870099329 | D103: 37.07871919
A104: 97 | C104: -0.02050458898 | D104: 36.32617694
A105: 98 | C105: 0.00376958088 | D105: 36.46336982
A106: 99 | C106: -0.004193711552 | D106: 36.31077316
A107: 100 | C107: -0.01617666608 | D107: 35.72811138
A108: 101 | C108: 0.01286019221 | D108: 36.1905489
A109: 102 | C109: -0.005245531587 | D109: 36.00120727
A110: 103 | C110: -0.006309231987 | D110: 35.77478233
A111: 104 | C111: 0.03383087606 | D111: 37.00578002
A112: 105 | C112: -0.02316958468 | D112: 36.15822809
A113: 106 | C113: -0.02151378207 | D113: 35.38863596
A114: 107 | C114: -0.01000407061 | D114: 35.03637053
A115: 108 | C115: -0.03379437226 | D115: 33.87212171
A116: 109 | C116: -0.03545674311 | D116: 32.69216885
A117: 110 | C117: -0.04586498276 | D117: 31.22660893
A118: 111 | C118: 0.0102379406 | D118: 31.54794721
A119: 112 | C119: -0.02745820158 | D119: 30.69348204
A120: 113 | C120: 0.002912396783 | D120: 30.78300394
A121: 114 | C121: -0.02333258861 | D121: 30.07307126
A122: 115 | C122: 0.03589006219 | D122: 31.17199798
A123: 116 | C123: 0.02863195875 | D123: 32.07741339
A124: 117 | C124: -0.01414993938 | D124: 31.62671613
A125: 118 | C125: 0.008879044737 | D125: 31.90878154
A126: 119 | C126: 0.01088915475 | D126: 32.25813985
A127: 120 | C127: 0.00115835907 | D127: 32.29552801
A128: 121 | C128: -0.03941130809 | D128: 31.04747426
A129: 122 | C129: -0.04534406054 | D129: 29.6710968
A130: 123 | C130: 0.002065213526 | D130: 29.73243727
A131: 124 | C131: 0.01883460399 | D131: 30.2977429
A132: 125 | C132: -0.01048506582 | D132: 29.98172868
A133: 126 | C133: -0.08406224605 | D133: 27.56442263
A134: 127 | C134: -0.001707438857 | D134: 27.51739822
A135: 128 | C135: -0.004348824908 | D135: 27.3979897
A136: 129 | C136: =_xlfn.NORM.INV(RAND(),$F$3,$F$5) -> -0.03405110517 | D136: 26.48076279
A137: 130 | C137: -0.004835637954 | D137: =D136*EXP(C137) -> 26.35302052
A138: 131 | C138: -0.02117145834 | D138: 25.8009533
A139: 132 | C139: -0.002577881141 | D139: 25.73452716
A140: 133 | C140: -0.031906842 | D140: 24.92638093
A141: 134 | C141: -0.02102851106 | D141: 24.40768902
A142: 135 | C142: 0.03868469176 | D142: 25.37039387
A143: 136 | C143: -0.01545478422 | D143: 24.98131422
A144: 137 | C144: 0.06292190909 | D144: 26.60369253
A145: 138 | C145: 0.01095147964 | D145: 26.89664353
A146: 139 | C146: -0.02841842837 | D146: 26.14304199
A147: 140 | C147: 0.01932577565 | D147: 26.65319018
A148: 141 | C148: 0.01561861418 | D148: 27.07274397
A149: 142 | C149: -0.001981413376 | D149: 27.01915479
A150: 143 | C150: -0.033777106 | D150: 26.12176683
A151: 144 | C151: -0.01866370371 | D151: 25.63875929
A152: 145 | C152: 0.02328957685 | D152: 26.24288273
A153: 146 | C153: -0.02553585581 | D153: 25.58123212
A154: 147 | C154: -0.00594838493 | D154: 25.42951678
A155: 148 | C155: 0.01731616246 | D155: 25.87369304
A156: 149 | C156: 0.02440213355 | D156: 26.51283283
A157: 150 | C157: -0.01262953295 | D157: 26.18009372
A158: 151 | C158: -0.0115504778 | D158: 25.87944082
A159: 152 | C159: 0.03178487101 | D159: 26.71522783
A160: 153 | C160: -0.003517721878 | D160: 26.62141619
A161: 154 | C161: -0.03752725905 | D161: 25.64090051
A162: 155 | C162: -0.003216905526 | D162: 25.55854868
A163: 156 | C163: 0.005468257888 | D163: 25.69869224
A164: 157 | C164: -0.01495092587 | D164: 25.31733096
A165: 158 | C165: 0.0248505346 | D165: 25.95436267
A166: 159 | C166: -0.00885101847 | D166: 25.72565377
A167: 160 | C167: -0.04704890374 | D167: 24.54332177
A168: 161 | C168: 0.003236856162 | D168: 24.62289368
A169: 162 | C169: -0.03895043986 | D169: 23.68225913
A170: 163 | C170: -0.02117050554 | D170: 23.18616356
A171: 164 | C171: 0.0339537233 | D171: 23.98693784
A172: 165 | C172: -0.01579996101 | D172: 23.61092349
A173: 166 | C173: 0.01697814534 | D173: 24.01521553
A174: 167 | C174: 0.0421278426 | D174: 25.04853775
A175: 168 | C175: -0.00988995412 | D175: 24.80202985
A176: 169 | C176: 0.02209083101 | D176: 25.35602386
A177: 170 | C177: -0.02352731134 | D177: 24.76642779
A178: 171 | C178: -0.0004391531314 | D178: 24.75555393
A179: 172 | C179: 0.01716308047 | D179: 25.18410258
A180: 173 | C180: -0.02848349071 | D180: 24.47689117
A181: 174 | C181: 0.05113904248 | D181: 25.76117458
A182: 175 | C182: 0.03251134154 | D182: 26.61246829
A183: 176 | C183: 0.01057289107 | D183: 26.89533173
A184: 177 | C184: 0.01828756195 | D184: 27.39170668
A185: 178 | C185: 0.008505079386 | D185: 27.62566885
A186: 179 | C186: 0.03877176703 | D186: 28.71779996
A187: 180 | C187: -0.0286784319 | D187: 27.90591591
A188: 181 | C188: 0.06770531688 | D188: 29.86072355
A189: 182 | C189: 0.0280316344 | D189: 30.7096107
A190: 183 | C190: 0.0109813385 | D190: 31.04870176
A191: 184 | C191: 0.007834438382 | D191: 31.29290625
A192: 185 | C192: 0.05821108285 | D192: 33.16856259
A193: 186 | C193: -0.01069269962 | D193: 32.81579052
A194: 187 | C194: -0.01348421101 | D194: 32.37626546
A195: 188 | C195: 0.03906036849 | D195: 33.66591749
A196: 189 | C196: 0.003471555388 | D196: 33.78299369
A197: 190 | C197: 0.008887722155 | D197: 34.0845858
A198: 191 | C198: 0.008244555598 | D198: 34.36675966
A199: 192 | C199: 0.02840183187 | D199: 35.35683197
A200: 193 | C200: =_xlfn.NORM.INV(RAND(),$F$3,$F$5) -> -0.013160319 | D200: 34.89457319
... 57 more rows

Sheet Quiz
E1: Sample Quiz A: No computer or calculator
E2: Ruler and colored pencils recommended
B3: Name__________________________ | J3: 2-digit Class # ________
B5: Using the graph below illustrate how to estimate the probability that the return on your investment in XYZ | P5: Rate 1 | Q5: 0
B6: stock is between | D6: =Q5 -> 0 | E6: and | F6: =Q6 -> 0.15 | G6: . Assume that the expected return on XYZ is | L6: =Q7 -> 0.1 | P6: Rate 2 | Q6: 0.15
B7: and the standard deviation of XYZ's return is | G7: =Q8 -> 0.2 | H7: and returns are normally distributed. | P7: Mean | Q7: 0.1
P8: Std | Q8: 0.2
B9: Put your answer to the above question in the space to the right: _________________
R10: St Devs
B11: Show how you arrived at this answer by completing the graph below with the following: | P11: P(x<Rate1) | Q11: =NORMDIST(Q5,Q7,Q8,1) -> 0.3085375387 | R11: =(Q5-Q7)/Q8 -> -0.5
C12: Below the horizontal axis label the standard deviation scale: -3, -2, -1, 0, 1, 2, 3 | P12: P(x>Rate2) | Q12: =1-NORMDIST(Q6,Q7,Q8,1) -> 0.4012936743 | R12: =(Q6-Q7)/Q8 -> 0.25
C13: Below the standard deviation scale add the rates of return for the stock as shown in class | P13: P(x<Rate1 and x>Rate2) | Q13: =Q11+Q12 -> 0.709831213
C14: Shade or crosshatch the area to be estimated | P14: P(Rate1<x<Rate2) | Q14: =1-Q13 -> 0.290168787 | R14: <-- Answer
C15: Label key areas of the graph with percentages used to arrive at your answer above
C16: Show any calculations in the space provided below the graph
B17: Your answer will be graded on completeness, neatness and a reasonable level of numeric accuracy.
B47: Perform any calculations below. Be sure to enter your answer above.
E53: Sample Quiz B: No computer or calculator
E54: Ruler and colored pencils recommended
B55: Name__________________________ | J55: 2-digit Class # ________
B57: Using the graph below illustrate how to estimate the probability that the return on your investment in XYZ | P57: Rate 1 | Q57: 0
B58: stock is between | D58: =Q57 -> 0 | E58: and | F58: =Q58 -> 0.2 | G58: . Assume that the expected return on XYZ is | L58: =Q59 -> 0.15 | P58: Rate 2 | Q58: 0.2
B59: and the standard deviation of XYZ's return is | G59: =Q60 -> 0.1 | H59: and returns are normally distributed. | P59: Mean | Q59: 0.15
P60: Std | Q60: 0.1
B61: Put your answer to the above question in the space to the right: _________________
R62: St Devs
B63: Show how you arrived at this answer by completing the graph below with the following: | P63: P(x<Rate1) | Q63: =NORMDIST(Q57,Q59,Q60,1) -> 0.06680720127 | R63: =(Q57-Q59)/Q60 -> -1.5
C64: Below the horizontal axis label the standard deviation scale: -3, -2, -1, 0, 1, 2, 3 | P64: P(x>Rate2) | Q64: =1-NORMDIST(Q58,Q59,Q60,1) -> 0.3085375387 | R64: =(Q58-Q59)/Q60 -> 0.5
C65: Below the standard deviation scale add the rates of return for the stock as shown in class | P65: P(x<Rate1 and x>Rate2) | Q65: =Q63+Q64 -> 0.37534474
C66: Shade or crosshatch the area to be estimated | P66: P(Rate1<x<Rate2) | Q66: =1-Q65 -> 0.62465526 | R66: <-- Answer
C67: Label key areas of the graph with percentages used to arrive at your answer above
C68: Show any calculations in the space provided below the graph
B69: Your answer will be graded on completeness, neatness and a reasonable level of numeric accuracy.
B98: Perform any calculations below. Be sure to enter your answer above.
